lending/lending_fUSD_20240710
["ID","MTS","AMOUNT","RATE_DAILY","PERIOD"]
[331601030,1720578679875,-161126.0,0.0001389,2]
[331601031,1720578679884,-7355.0,0.0001389,2]
[331601032,1720578679894,-441.7244366,0.00013891,2]
[331601033,1720578679904,-500.0,0.00013891,2]
[331601034,1720578679913,-500.0,0.00013891,2]
[331601035,1720578679923,-817.04,0.00013891,2]
[331601036,1720578679933,-500.0,0.00013891,2]
[331601037,1720578679942,-971.82,0.00013891,2]
[331601038,1720578679951,-500.0,0.00013891,2]
[331601039,1720578679961,-500.0,0.00013891,2]
[331601040,1720578679970,-500.0,0.00013891,2]
[331601041,1720578679979,-500.0,0.00013891,2]
[331601042,1720578679988,-500.0,0.00013891,2]
[331601043,1720578679997,-1958.4,0.00013891,2]
[331601044,1720578680007,-500.0,0.00013891,2]
[331601045,1720578680016,-500.0,0.00013892,2]
[331601046,1720578680025,-4166.66,0.00013892,2]
[331601047,1720578680035,-150.0,0.00013893,2]
[331601048,1720578680044,-520.5778938,0.00013897,2]
[331601049,1720578680055,-176.21363157,0.00013897,2]
[331601050,1720578680064,-227.87814094,0.00013897,2]
[331601051,1720578680073,-1000.8485,0.00013899,2]
[331601052,1720578680084,-250000.0,0.000139,2]
[331601053,1720578680093,-186.58873868,0.000139,2]
[331601054,1720578680103,-520.5778938,0.00013908,2]
[331601055,1720578680113,-176.21363157,0.00013908,2]
[331601056,1720578680122,-227.87814094,0.00013908,2]
[331601057,1720578680132,-4197.77,0.00013917,2]
[331601058,1720578680141,-520.5778938,0.00013919,2]
[331601059,1720578680150,-176.21363157,0.00013919,2]
[331601060,1720578680160,-227.87814094,0.00013919,2]
[331601061,1720578680170,-199.0,0.0001392,2]
[331601062,1720578680180,-150.0,0.00013923,2]
[331601063,1720578680190,-198.683,0.00013927,2]
[331601064,1720578680199,-193.746,0.00013927,2]
[331601065,1720578680208,-205.599,0.00013927,2]
[331601066,1720578680218,-150.0,0.00013927,2]
[331601067,1720578680227,-520.5778938,0.00013931,2]
[331601068,1720578680237,-176.21363157,0.00013931,2]
[331601069,1720578680247,-227.87814094,0.00013931,2]
[331601070,1720578680256,-757.8,0.00013936,2]
[331601071,1720578680265,-500.0,0.00013936,2]
[331601072,1720578680275,-500.0,0.00013936,2]
[331601073,1720578680285,-500.0,0.00013936,2]
[331601074,1720578680294,-636.3,0.00013936,2]
[331601075,1720578680303,-500.0,0.00013936,2]
[331601076,1720578680313,-500.0,0.00013936,2]
[331601077,1720578680323,-2000.0,0.00013936,2]
[331601078,1720578680332,-2005.69,0.00013936,2]
[331601079,1720578680342,-500.0,0.00013936,2]
[331601080,1720578680352,-500.0,0.00013936,2]
[331601081,1720578680362,-500.0,0.00013936,2]
[331601082,1720578680372,-500.0,0.00013936,2]
[331601083,1720578680382,-1486.82,0.00013936,2]
[331601084,1720578680392,-500.0,0.00013936,2]
[331601085,1720578680402,-20000.0,0.00013936,2]
[331601086,1720578680412,-500.0,0.00013936,2]
[331601087,1720578680422,-500.0,0.00013936,2]
[331601088,1720578680431,-500.0,0.00013936,2]
[331601089,1720578680441,-500.0,0.00013936,2]
[331601090,1720578680450,-500.0,0.00013936,2]
[331601091,1720578680460,-500.0,0.00013936,2]
[331601092,1720578680469,-500.0,0.00013936,2]
[331601093,1720578680479,-500.0,0.00013936,2]
[331601094,1720578680488,-1914.68,0.00013936,2]
[331601095,1720578680498,-500.0,0.00013936,2]
[331601096,1720578680507,-500.0,0.00013936,2]
[331601097,1720578680516,-500.0,0.00013936,2]
[331601098,1720578680525,-500.0,0.00013936,2]
[331601099,1720578680535,-500.0,0.00013936,2]
[331601100,1720578680544,-500.0,0.00013936,2]
[331601101,1720578680554,-500.0,0.00013936,2]
[331601102,1720578680564,-500.0,0.00013936,2]
[331601103,1720578680573,-500.0,0.00013936,2]
[331601104,1720578680583,-1000.0,0.00013936,2]
[331601105,1720578680592,-500.0,0.00013936,2]
[331601106,1720578680602,-3914.89,0.00013936,2]
[331601107,1720578680611,-500.0,0.00013936,2]
[331601108,1720578680621,-500.0,0.00013936,2]
[331601109,1720578680631,-500.0,0.00013936,2]
[331601110,1720578680640,-500.0,0.00013936,2]
[331601111,1720578680650,-500.0,0.00013936,2]
[331601112,1720578680659,-1038.91,0.00013937,2]
[331601113,1720578680668,-1317.14,0.00013937,2]
[331601114,1720578680678,-1390.96,0.00013937,2]
[331601115,1720578680689,-1455.92,0.00013937,2]
[331601116,1720578680699,-500.0,0.00013937,2]
[331601117,1720578680708,-1960.51,0.00013937,2]
[331601118,1720578680717,-2618.57,0.00013937,2]
[331601119,1720578680727,-1029.8,0.00013937,2]
[331601120,1720578680736,-500.0,0.00013937,2]
[331601121,1720578680746,-1905.84,0.00013937,2]
[331601122,1720578680756,-2751.51,0.00013937,2]
[331601123,1720578680765,-5036.29,0.00013937,2]
[331601124,1720578680775,-670.86,0.00013937,2]
[331601125,1720578680784,-1711.01,0.00013937,2]
[331601126,1720578680793,-500.0,0.00013937,2]
[331601127,1720578680803,-500.0,0.00013937,2]
[331601128,1720578680812,-500.0,0.00013937,2]
[331601129,1720578680822,-3859.09,0.00013937,2]
[331601130,1720578680832,-1762.08,0.00013937,2]
[331601131,1720578680842,-1456.74,0.00013937,2]
[331601132,1720578680852,-3792.63,0.00013937,2]
[331601133,1720578680862,-1563.93,0.00013937,2]
[331601134,1720578680872,-2172.58,0.00013937,2]
[331601135,1720578680881,-1021.12,0.00013937,2]
[331601136,1720578680891,-1287.44,0.00013937,2]
[331601137,1720578680900,-500.0,0.00013937,2]
[331601138,1720578680909,-2002.94,0.00013937,2]
[331601139,1720578680919,-500.0,0.00013937,2]
[331601140,1720578680928,-2847.29,0.00013937,2]
[331601141,1720578680937,-500.0,0.00013937,2]
[331601142,1720578680949,-1287.82,0.00013937,2]
[331601143,1720578680958,-500.0,0.00013937,2]
[331601144,1720578680968,-500.0,0.00013937,2]
[331601145,1720578680977,-1532.31,0.00013937,2]
[331601146,1720578680987,-18831.15,0.00013937,2]
[331601147,1720578680996,-573.49,0.00013937,2]
[331601148,1720578681005,-507.26,0.00013937,2]
[331601149,1720578681014,-4113.11,0.00013937,2]
[331601150,1720578681024,-1312.78,0.00013937,2]
[331601151,1720578681033,-1834.03,0.00013937,2]
[331601152,1720578681042,-2122.3,0.00013937,2]
[331601153,1720578681051,-5120.22,0.00013937,2]
[331601154,1720578681060,-1279.8,0.00013937,2]
[331601155,1720578681069,-839.66,0.00013937,2]
[331601156,1720578681078,-1175.98,0.00013937,2]
[331601157,1720578681087,-4117.2,0.00013937,2]
[331601158,1720578681096,-1655.36,0.00013937,2]
[331601159,1720578681105,-1896.2,0.00013937,2]
[331601160,1720578681115,-1132.24,0.00013937,2]
[331601161,1720578681126,-606.3,0.00013937,2]
[331601162,1720578681135,-1421.19,0.00013937,2]
[331601163,1720578681145,-654.8,0.00013937,2]
[331601164,1720578681154,-1131.81,0.00013937,2]
[331601165,1720578681163,-1334.15,0.00013937,2]
[331601166,1720578681173,-500.0,0.00013937,2]
[331601167,1720578681182,-2422.26,0.00013937,2]
[331601168,1720578681191,-1116.51,0.00013937,2]
[331601169,1720578681200,-1951.99,0.00013937,2]
[331601170,1720578681210,-2661.03,0.00013937,2]
[331601171,1720578681219,-1178.8,0.00013937,2]
[331601172,1720578681228,-1253.31,0.00013937,2]
[331601173,1720578681242,-1200.25,0.00013937,2]
[331601174,1720578681251,-4612.26,0.00013937,2]
[331601175,1720578681261,-4612.26,0.00013937,2]
[331601176,1720578681270,-1260.1,0.00013937,2]
[331601177,1720578681279,-1418.06,0.00013937,2]
[331601178,1720578681289,-3430.04,0.00013937,2]
[331601179,1720578681298,-500.0,0.00013937,2]
[331601180,1720578681308,-500.0,0.00013937,2]
[331601181,1720578681317,-549.11,0.00013937,2]
[331601182,1720578681327,-500.0,0.00013937,2]
[331601183,1720578681336,-3396.59,0.00013937,2]
[331601184,1720578681346,-500.0,0.00013937,2]
[331601185,1720578681355,-500.0,0.00013937,2]
[331601186,1720578681366,-500.0,0.00013937,2]
[331601187,1720578681375,-1770.78,0.00013937,2]
[331601188,1720578681385,-2530.21,0.00013937,2]
[331601189,1720578681395,-1287.82,0.00013937,2]
[331601190,1720578681405,-1059.63,0.00013937,2]
[331601191,1720578681415,-500.0,0.00013937,2]
[331601192,1720578681425,-1544.82,0.00013937,2]
[331601193,1720578681435,-885.52,0.00013937,2]
[331601194,1720578681444,-1342.13,0.00013937,2]
[331601195,1720578681454,-756.53,0.00013937,2]
[331601196,1720578681463,-944.74,0.00013937,2]
[331601197,1720578681473,-500.0,0.00013937,2]
[331601198,1720578681483,-1406.5,0.00013937,2]
[331601199,1720578681492,-1077.77,0.00013937,2]
[331601200,1720578681502,-500.0,0.00013937,2]
[331601201,1720578681511,-3328.51,0.00013937,2]
[331601202,1720578681521,-500.0,0.00013937,2]
[331601203,1720578681531,-3783.08,0.00013937,2]
[331601204,1720578681540,-869.72,0.00013937,2]
[331601205,1720578681550,-500.0,0.00013937,2]
[331601206,1720578681559,-500.0,0.00013937,2]
[331601207,1720578681569,-3362.6,0.00013937,2]
[331601208,1720578681578,-656.32,0.00013937,2]
[331601209,1720578681588,-504.68,0.00013937,2]
[331601210,1720578681597,-3222.36,0.00013937,2]
[331601211,1720578681607,-1629.29,0.00013937,2]
[331601212,1720578681616,-500.0,0.00013937,2]
[331601213,1720578681626,-500.0,0.00013937,2]
[331601214,1720578681636,-3487.89,0.00013937,2]
[331601215,1720578681646,-1828.3,0.00013937,2]
[331601216,1720578681656,-500.0,0.00013937,2]
[331601217,1720578681666,-500.0,0.00013937,2]
[331601218,1720578681676,-500.0,0.00013937,2]
[331601219,1720578681686,-5257.38,0.00013937,2]
[331601220,1720578681696,-500.0,0.00013937,2]
[331601221,1720578681706,-1267.89,0.00013937,2]
[331601222,1720578681715,-389.23943574,0.00013937,2]
[331601223,1720578681725,-500.0,0.00013937,2]
[331601224,1720578681735,-500.0,0.00013937,2]
[331601225,1720578681745,-500.0,0.00013937,2]
[331601226,1720578681755,-634.68,0.00013937,2]
[331601227,1720578681765,-2273.65,0.00013937,2]
[331601228,1720578681774,-500.0,0.00013937,2]
[331601229,1720578681784,-500.0,0.00013937,2]
[331601230,1720578681794,-500.0,0.00013937,2]
[331601231,1720578681803,-500.0,0.00013937,2]
[331601232,1720578681813,-896.69,0.00013937,2]
[331601233,1720578681822,-500.0,0.00013937,2]
[331601234,1720578681833,-966.63,0.00013937,2]
[331601235,1720578681849,-1443.09,0.00013937,2]
[331601236,1720578681864,-500.0,0.00013937,2]
[331601237,1720578681878,-500.0,0.00013937,2]
[331601238,1720578681891,-639.2,0.00013937,2]
[331601239,1720578681902,-500.0,0.00013937,2]
[331601240,1720578681916,-500.0,0.00013937,2]
[331601241,1720578681929,-500.0,0.00013937,2]
[331601242,1720578681942,-500.0,0.00013937,2]
[331601243,1720578681957,-1220.14,0.00013937,2]
[331601244,1720578681970,-500.0,0.00013937,2]
[331601245,1720578681984,-541.01,0.00013937,2]
[331601246,1720578681999,-831.42,0.00013937,2]
[331601247,1720578682013,-500.0,0.00013937,2]
[331601248,1720578682030,-1127.62,0.00013937,2]
[331601249,1720578682044,-1218.93,0.00013937,2]
[331601250,1720578682056,-500.0,0.00013937,2]
[331601251,1720578682070,-1012.4,0.00013937,2]
[331601252,1720578682086,-1298.8,0.00013937,2]
[331601253,1720578682099,-500.0,0.00013937,2]
[331601254,1720578682116,-500.0,0.00013937,2]
[331601255,1720578682127,-970.3,0.00013937,2]
[331601256,1720578682140,-2186.57,0.00013937,2]
[331601257,1720578682152,-500.0,0.00013937,2]
[331601258,1720578682166,-524.84,0.00013937,2]
[331601259,1720578682180,-1512.83,0.00013937,2]
[331601260,1720578682193,-1160.2,0.00013937,2]
[331601261,1720578682208,-500.0,0.00013937,2]
[331601262,1720578682222,-660.83,0.00013937,2]
[331601263,1720578682235,-1757.71,0.00013937,2]
[331601264,1720578682247,-500.0,0.00013937,2]
[331601265,1720578682257,-1106.87,0.00013937,2]
[331601266,1720578682268,-500.0,0.00013937,2]
[331601267,1720578682280,-500.0,0.00013937,2]
[331601268,1720578682293,-500.0,0.00013937,2]
[331601269,1720578682306,-500.0,0.00013937,2]
[331601270,1720578682318,-701.66,0.00013937,2]
[331601271,1720578682328,-1729.59,0.00013937,2]
[331601272,1720578682340,-2068.54,0.00013937,2]
[331601273,1720578682354,-1374.41,0.00013937,2]
[331601274,1720578682367,-1628.46,0.00013937,2]
[331601275,1720578682378,-500.0,0.00013937,2]
[331601276,1720578682389,-500.0,0.00013937,2]
[331601277,1720578682402,-677.11,0.00013937,2]
[331601278,1720578682413,-1656.94,0.00013937,2]
[331601279,1720578682424,-1266.15,0.00013937,2]
[331601280,1720578682435,-500.0,0.00013937,2]
[331601281,1720578682447,-1326.83,0.00013937,2]
[331601282,1720578682458,-714.26,0.00013937,2]
[331601283,1720578682470,-570.72,0.00013937,2]
[331601284,1720578682481,-500.0,0.00013937,2]
[331601285,1720578682492,-2502.21,0.00013937,2]
[331601286,1720578682503,-3059.3,0.00013937,3]
[331601287,1720578682515,-500.0,0.00013937,2]
[331601288,1720578682542,-905.75,0.00013937,2]
[331601289,1720578682554,-2000.0,0.00013937,2]
[331601290,1720578682567,-1000.0,0.00013937,2]
[331601291,1720578682579,-500.0,0.00013937,2]
[331601292,1720578682591,-626.66001744,0.00013937,5]
[331601293,1720578682604,-156281.01588604,0.00013938,2]
[331601294,1720578682616,-500.0,0.00013938,2]
[331601295,1720578682630,-1463.89,0.00013938,2]
[331601296,1720578682643,-500.0,0.00013938,2]
[331601297,1720578682656,-500.0,0.00013938,2]
[331601298,1720578682669,-500.0,0.00013938,2]
[331601299,1720578682682,-500.0,0.00013938,2]
[331601300,1720578682695,-500.0,0.00013938,2]
[331601301,1720578682709,-500.0,0.00013938,2]
[331601302,1720578682722,-500.0,0.00013938,2]
[331601303,1720578682735,-653.53,0.00013938,2]
[331601304,1720578682748,-500.0,0.00013938,2]
[331601305,1720578682761,-1563.68,0.00013938,2]
[331601306,1720578682774,-500.0,0.00013938,2]
[331601307,1720578682788,-500.0,0.00013938,2]
[331601308,1720578682800,-500.0,0.00013938,2]
[331601309,1720578682813,-1551.53,0.00013938,2]
[331601310,1720578682826,-500.0,0.00013938,2]
[331601311,1720578682839,-500.0,0.00013938,2]
[331601312,1720578682851,-500.0,0.00013938,2]
[331601313,1720578682865,-500.0,0.00013938,2]
[331601314,1720578682878,-1628.17,0.00013938,2]
[331601315,1720578682891,-500.0,0.00013938,2]
[331601316,1720578682903,-576.36,0.00013938,2]
[331601317,1720578682916,-500.0,0.00013938,2]
[331601318,1720578682928,-500.0,0.00013938,2]
[331601319,1720578682941,-2288.17,0.00013938,2]
[331601320,1720578682954,-500.0,0.00013938,2]
[331601321,1720578682968,-2212.0,0.00013938,2]
[331601322,1720578682982,-500.0,0.00013938,2]
[331601323,1720578682994,-743.11,0.00013938,2]
[331601324,1720578683007,-500.0,0.00013938,2]
[331601325,1720578683020,-885.74,0.00013938,2]
[331601326,1720578683033,-1500.63,0.00013938,2]
[331601327,1720578683060,-500.0,0.00013938,2]
[331601328,1720578683074,-970.09,0.00013938,2]
[331601329,1720578683086,-500.0,0.00013938,2]
[331601330,1720578683098,-500.0,0.00013938,2]
[331601331,1720578683110,-500.0,0.00013938,2]
[331601332,1720578683123,-1219.64,0.00013938,2]
[331601333,1720578683134,-500.0,0.00013938,2]
[331601334,1720578683147,-550.88,0.00013938,2]
[331601335,1720578683158,-1941.67,0.00013938,2]
[331601336,1720578683171,-500.0,0.00013938,2]
[331601337,1720578683183,-938.84,0.00013938,2]
[331601338,1720578683193,-500.0,0.00013938,2]
[331601339,1720578683205,-500.0,0.00013938,2]
[331601340,1720578683217,-912.5,0.00013938,2]
[331601341,1720578683228,-1216.41,0.00013938,2]
[331601342,1720578683240,-500.0,0.00013938,2]
[331601343,1720578683251,-500.0,0.00013938,2]
[331601344,1720578683263,-1247.03,0.00013938,2]
[331601345,1720578683275,-500.0,0.00013938,2]
[331601346,1720578683287,-711.42,0.00013938,2]
[331601347,1720578683299,-2106.9,0.00013938,2]
[331601348,1720578683310,-639.14,0.00013938,2]
[331601349,1720578683322,-500.0,0.00013938,2]
[331601350,1720578683333,-500.0,0.00013938,2]
[331601351,1720578683345,-2398.73,0.00013938,2]
[331601352,1720578683356,-500.0,0.00013938,2]
[331601353,1720578683369,-507.93,0.00013938,2]
[331601354,1720578683380,-1148.15,0.00013938,2]
[331601355,1720578683392,-2234.89,0.00013938,2]
[331601356,1720578683404,-1772.75,0.00013938,2]
[331601357,1720578683416,-500.0,0.00013938,2]
[331601358,1720578683428,-500.0,0.00013938,2]
[331601359,1720578683440,-500.0,0.00013938,2]
[331601360,1720578683451,-500.0,0.00013938,2]
[331601361,1720578683463,-500.0,0.00013938,2]
[331601362,1720578683474,-1143.34,0.00013938,2]
[331601363,1720578683486,-500.25,0.00013938,2]
[331601364,1720578683497,-2893.92,0.00013938,2]
[331601365,1720578683509,-500.0,0.00013938,2]
[331601366,1720578683520,-624.77802372,0.00013938,2]
[331601367,1720578683531,-500.0,0.00013938,2]
[331601368,1720578683542,-500.0,0.00013938,2]
[331601369,1720578683552,-980.01,0.00013938,2]
[331601370,1720578683564,-500.0,0.00013938,2]
[331601371,1720578683583,-1464.91,0.00013938,2]
[331601372,1720578683595,-500.0,0.00013938,2]
[331601373,1720578683608,-500.0,0.00013938,2]
[331601374,1720578683619,-500.0,0.00013938,2]
[331601375,1720578683630,-500.0,0.00013938,2]
[331601376,1720578683640,-897.43,0.00013938,2]
[331601377,1720578683651,-1140.5,0.00013938,2]
[331601378,1720578683661,-500.0,0.00013938,2]
[331601379,1720578683672,-500.0,0.00013938,2]
[331601380,1720578683682,-3605.84,0.00013938,2]
[331601381,1720578683692,-500.0,0.00013938,2]
[331601382,1720578683703,-500.0,0.00013938,2]
[331601383,1720578683714,-500.0,0.00013938,2]
[331601384,1720578683725,-622.46,0.00013938,2]
[331601385,1720578683735,-739.12,0.00013938,2]
[331601386,1720578683746,-500.0,0.00013938,2]
[331601387,1720578685222,-695.45,0.00013938,2]
[331601388,1720578685241,-500.0,0.00013938,2]
[331601389,1720578685267,-3305.33,0.00013938,2]
[331601390,1720578685295,-695.74,0.00013938,2]
[331601391,1720578685309,-631.74,0.00013938,2]
[331601392,1720578685320,-500.0,0.00013938,2]
[331601393,1720578685329,-500.0,0.00013938,2]
[331601394,1720578685339,-1038.91,0.00013938,2]
[331601395,1720578685348,-1038.91,0.00013938,2]
[331601396,1720578685357,-550.23,0.00013938,2]
[331601397,1720578685366,-500.0,0.00013938,2]
[331601398,1720578685375,-1071.25,0.00013938,2]
[331601399,1720578685384,-1388.45,0.00013938,2]
[331601400,1720578685393,-500.0,0.00013938,2]
[331601401,1720578685403,-500.0,0.00013938,2]
[331601402,1720578685412,-2473.23,0.00013938,2]
[331601403,1720578685421,-500.0,0.00013938,2]
[331601404,1720578685430,-978.08,0.00013938,2]
[331601405,1720578685439,-5532.13,0.00013938,2]
[331601406,1720578685448,-500.0,0.00013938,2]
[331601407,1720578685457,-2866.95,0.00013938,2]
[331601408,1720578685466,-500.0,0.00013938,2]
[331601409,1720578685476,-809.3,0.00013938,2]
[331601410,1720578685485,-500.0,0.00013938,2]
[331601411,1720578685494,-1912.64,0.00013938,2]
[331601412,1720578685503,-505.8,0.00013938,2]
[331601413,1720578685513,-500.0,0.00013938,2]
[331601414,1720578685522,-627.06,0.00013938,2]
[331601415,1720578685531,-500.0,0.00013938,2]
[331601416,1720578685540,-544.95,0.00013938,2]
[331601417,1720578685549,-1862.31,0.00013938,2]
[331601418,1720578685558,-500.0,0.00013938,2]
[331601419,1720578685567,-500.0,0.00013938,2]
[331601420,1720578685577,-500.0,0.00013938,2]
[331601421,1720578685586,-1273.12,0.00013938,2]
[331601422,1720578685595,-500.0,0.00013938,2]
[331601423,1720578685604,-924.69,0.00013938,2]
[331601424,1720578685613,-597.61,0.00013938,2]
[331601425,1720578685623,-500.0,0.00013938,2]
[331601426,1720578685632,-1858.17,0.00013938,2]
[331601427,1720578685641,-500.0,0.00013938,2]
[331601428,1720578685650,-423.27370752,0.00013938,2]
[331601429,1720578685659,-545.13,0.00013938,2]
[331601430,1720578685668,-500.0,0.00013938,2]
[331601431,1720578685678,-500.0,0.00013938,2]
[331601432,1720578685686,-739.11,0.00013938,2]
[331601433,1720578685696,-1265.1,0.00013938,2]
[331601434,1720578685705,-500.0,0.00013938,2]
[331601435,1720578685714,-664.94,0.00013938,2]
[331601436,1720578685723,-500.0,0.00013938,2]
[331601437,1720578685732,-500.0,0.00013938,2]
[331601438,1720578685741,-575.14,0.00013938,2]
[331601439,1720578685751,-1204.35,0.00013938,2]
[331601440,1720578685760,-500.0,0.00013938,2]
[331601441,1720578685769,-787.9,0.00013938,2]
[331601442,1720578685778,-500.0,0.00013938,2]
[331601443,1720578685788,-1245.72,0.00013938,2]
[331601444,1720578685797,-1304.79,0.00013938,2]
[331601445,1720578685806,-841.57,0.00013938,2]
[331601446,1720578685815,-500.0,0.00013938,2]
[331601447,1720578685826,-5575.91,0.00013938,2]
[331601448,1720578685836,-500.0,0.00013938,2]
[331601449,1720578685845,-1071.56,0.00013938,2]
[331601450,1720578685855,-1264.05,0.00013938,2]
[331601451,1720578685864,-2114.46,0.00013938,2]
[331601452,1720578685874,-500.0,0.00013938,2]
[331601453,1720578685884,-500.0,0.00013938,2]
[331601454,1720578685894,-538.86,0.00013938,2]
[331601455,1720578685903,-500.0,0.00013938,2]
[331601456,1720578685912,-500.0,0.00013938,2]
[331601457,1720578685922,-500.0,0.00013938,2]
[331601458,1720578685931,-500.0,0.00013938,2]
[331601459,1720578685940,-1814.83,0.00013938,2]
[331601460,1720578685950,-1085.35,0.00013938,2]
[331601461,1720578685959,-500.0,0.00013938,2]
[331601462,1720578685968,-1900.38,0.00013938,2]
[331601463,1720578685977,-500.0,0.00013938,2]
[331601464,1720578685986,-500.0,0.00013938,2]
[331601465,1720578685996,-612.29,0.00013938,2]
[331601466,1720578686005,-500.0,0.00013938,2]
[331601467,1720578686015,-3154.74,0.00013938,2]
[331601468,1720578686024,-500.0,0.00013938,2]
[331601469,1720578686033,-500.0,0.00013938,2]
[331601470,1720578686042,-500.0,0.00013938,2]
[331601471,1720578686051,-666.44,0.00013938,2]
[331601472,1720578686060,-1501.48,0.00013938,2]
[331601473,1720578686070,-564.60403933,0.00013938,2]
[331601474,1720578686079,-500.0,0.00013938,2]
[331601475,1720578686088,-500.0,0.00013938,2]
[331601476,1720578686097,-613.68670981,0.00013938,2]
[331601477,1720578686106,-500.0,0.00013938,2]
[331601478,1720578686115,-500.0,0.00013938,2]
[331601479,1720578686125,-500.0,0.00013938,2]
[331601480,1720578686135,-500.0,0.00013938,2]
[331601481,1720578686144,-1071.26,0.00013938,2]
[331601482,1720578686153,-980.17,0.00013938,2]
[331601483,1720578686163,-1193.03,0.00013938,2]
[331601484,1720578686172,-1433.96,0.00013938,2]
[331601485,1720578686181,-500.0,0.00013938,2]
[331601486,1720578686191,-1363.71,0.00013938,2]
[331601487,1720578686200,-500.0,0.00013938,2]
[331601488,1720578686209,-500.0,0.00013938,2]
[331601489,1720578686219,-500.0,0.00013938,2]
[331601490,1720578686228,-500.0,0.00013938,2]
[331601491,1720578686237,-1127.54,0.00013938,2]
[331601492,1720578686247,-163.30467255,0.00013938,2]
[331601493,1720578686256,-745.98,0.00013938,2]
[331601494,1720578686266,-500.0,0.00013938,2]
[331601495,1720578686276,-500.0,0.00013938,2]
[331601496,1720578686286,-1290.64,0.00013938,2]
[331601497,1720578686296,-1292.58,0.00013938,2]
[331601498,1720578686306,-1042.23,0.00013938,2]
[331601499,1720578686315,-1580.24,0.00013938,2]
[331601500,1720578686327,-500.0,0.00013938,2]
[331601501,1720578686336,-1054.05,0.00013938,2]
[331601502,1720578686346,-500.0,0.00013938,2]
[331601503,1720578686355,-500.0,0.00013938,2]
[331601504,1720578686364,-500.0,0.00013938,2]
[331601505,1720578686374,-500.0,0.00013938,2]
[331601506,1720578686383,-500.0,0.00013938,2]
[331601507,1720578686393,-1403.19,0.00013938,2]
[331601508,1720578686402,-1317.14,0.00013938,2]
[331601509,1720578686412,-1317.14,0.00013938,2]
[331601510,1720578686422,-620.40852678,0.00013938,2]
[331601511,1720578686431,-535.47,0.00013938,2]
[331601512,1720578686441,-971.81,0.00013938,2]
[331601513,1720578686451,-589.11,0.00013938,2]
[331601514,1720578686462,-2193.03,0.00013938,2]
[331601515,1720578686471,-500.0,0.00013938,2]
[331601516,1720578686481,-500.0,0.00013938,2]
[331601517,1720578686491,-754.1,0.00013938,2]
[331601518,1720578686500,-2319.09,0.00013938,2]
[331601519,1720578686510,-500.0,0.00013938,2]
[331601520,1720578686520,-567.35,0.00013938,2]
[331601521,1720578686530,-658.27,0.00013938,2]
[331601522,1720578686539,-502.13,0.00013938,2]
[331601523,1720578686549,-500.0,0.00013938,2]
[331601524,1720578686558,-640.0,0.00013938,2]
[331601525,1720578686568,-1162.5,0.00013938,2]
[331601526,1720578686579,-518.4,0.00013938,2]
[331601527,1720578686588,-500.0,0.00013938,2]
[331601528,1720578686598,-500.0,0.00013938,2]
[331601529,1720578686607,-1309.73,0.00013938,2]